[Event "Elite Hotels Open 2024"]
[Site "Elite Stadshotellet, Kungsgatan 6, Vaxjo, Sweden"]
[Date "2024.02.09"]
[Round "4.3"]
[White "Seo, Jung Min"]
[Black "Falkevall, Axel"]
[Result "1-0"]
[TimeControl "15 minutes + 5 seconds per move from move one (Round 1 - 4) / 90 minutes + 30 seconds per move from move one (Round 5 - 8)"]
[WhiteTitle "IM"]
[BlackTitle "FM"]
[WhiteFideId "1734687"]
[BlackFideId "1735560"]
[WhiteElo "2466"]
[BlackElo "2290"]

1. d4 {[%clk 00:15:08]} {[%emt 00:00:01]} Nf6 {[%clk 00:15:09]} {[%emt
00:00:01]} 2. c4 {[%clk 00:15:13]} g6 3. Nc3 Bg7 {[%clk 00:15:17]} 4. e4 {[%clk
00:15:22]} d6 {[%clk 00:15:21]} 5. Be2 {[%clk 00:15:21]} {[%emt 00:00:06]} O-O
{[%clk 00:15:23]} {[%emt 00:00:03]} 6. Be3 {[%clk 00:15:25]} e5 {[%clk
00:15:22]} {[%emt 00:00:07]} 7. d5 {[%clk 00:15:28]} {[%emt 00:00:03]} Na6
{[%clk 00:15:26]} 8. h4 {[%clk 00:15:14]} {[%emt 00:00:18]} Nc5 {[%clk
00:15:21]} {[%emt 00:00:10]} 9. f3 {[%clk 00:15:01]} {[%emt 00:00:19]} c6
{[%clk 00:15:05]} {[%emt 00:00:20]} 10. g4 {[%clk 00:13:18]} {[%emt 00:01:48]}
cxd5 {[%clk 00:14:08]} {[%emt 00:01:02]} 11. cxd5 {[%clk 00:13:22]} {[%emt
00:00:01]} a5 {[%clk 00:13:31]} {[%emt 00:00:42]} 12. Nh3 {[%clk 00:13:12]}
{[%emt 00:00:15]} h5 {[%clk 00:13:20]} {[%emt 00:00:17]} 13. g5 {[%clk
00:13:13]} {[%emt 00:00:03]} Nh7 {[%clk 00:12:55]} {[%emt 00:00:29]} 14. Qd2
{[%clk 00:13:07]} {[%emt 00:00:12]} a4 {[%clk 00:12:44]} {[%emt 00:00:16]} 15.
Nf2 {[%clk 00:12:51]} {[%emt 00:00:21]} f6 {[%clk 00:12:32]} {[%emt 00:00:17]}
16. gxf6 {[%clk 00:09:51]} {[%emt 00:03:05]} Bxf6 {[%clk 00:12:28]} {[%emt
00:00:08]} 17. O-O-O {[%clk 00:09:54]} {[%emt 00:00:02]} Bxh4 {[%clk 00:11:42]}
{[%emt 00:00:51]} 18. Rdg1 {[%clk 00:09:55]} {[%emt 00:00:04]} Kf7 {[%clk
00:09:52]} {[%emt 00:01:56]} 19. Nd3 {[%clk 00:09:14]} {[%emt 00:00:45]} Nxd3+
{[%clk 00:09:32]} {[%emt 00:00:25]} 20. Bxd3 {[%clk 00:09:07]} {[%emt
00:00:12]} Bd7 {[%clk 00:08:56]} {[%emt 00:00:41]} 21. f4 {[%clk 00:09:07]}
{[%emt 00:00:05]} exf4 {[%clk 00:08:12]} {[%emt 00:00:48]} 22. Bxf4 {[%clk
00:09:11]} {[%emt 00:00:02]} Bg4 {[%clk 00:07:58]} {[%emt 00:00:19]} 23. Qh2
{[%clk 00:08:22]} {[%emt 00:00:54]} Kg8 {[%clk 00:03:28]} {[%emt 00:04:35]} 24.
Bxd6 {[%clk 00:08:19]} {[%emt 00:00:08]} Rf3 {[%clk 00:01:47]} {[%emt
00:01:46]} 25. Be2 {[%clk 00:05:23]} {[%emt 00:03:01]} Bg5+ {[%clk 00:01:10]}
{[%emt 00:00:42]} 26. Kb1 {[%clk 00:05:06]} {[%emt 00:00:22]} Rh3 {[%clk
00:01:14]} 27. Qe5 {[%clk 00:03:02]} {[%emt 00:02:09]} Bf6 {[%clk 00:01:18]} 28.
Bxg4 {[%clk 00:02:56]} {[%emt 00:00:11]} Rxh1 {[%clk 00:00:45]} {[%emt
00:00:39]} 29. Qe6+ {[%clk 00:02:59]} {[%emt 00:00:01]} Kg7 {[%clk 00:00:45]}
{[%emt 00:00:05]} 30. Rxh1 {[%clk 00:03:03]} hxg4 {[%clk 00:00:14]} {[%emt
00:00:36]} 31. e5 {[%clk 00:03:05]} {[%emt 00:00:03]} Bh4 {[%clk 00:00:12]}
{[%emt 00:00:07]} 32. Qxg4 {[%clk 00:03:06]} {[%emt 00:00:04]} Bg5 {[%clk
00:00:14]} {[%emt 00:00:03]} 33. Ne4 {[%clk 00:03:01]} {[%emt 00:00:10]} Be3
{[%clk 00:00:12]} {[%emt 00:00:07]} 34. Qh3 {[%clk 00:02:46]} {[%emt 00:00:18]}
1-0

[Event "Elite Hotels Open 2024"]
[Site "Elite Stadshotellet, Kungsgatan 6, Vaxjo, Sweden"]
[Date "2024.02.09"]
[Round "4.4"]
[White "Crevatin, Leo"]
[Black "Hector, Jonny"]
[Result "1-0"]
[TimeControl "15 minutes + 5 seconds per move from move one (Round 1 - 4) / 90 minutes + 30 seconds per move from move one (Round 5 - 8)"]
[WhiteTitle "FM"]
[BlackTitle "GM"]
[WhiteFideId "1726307"]
[BlackFideId "1700090"]
[WhiteElo "2303"]
[BlackElo "2449"]

1. d4 {[%clk 00:15:08]} {[%emt 00:00:02]} d5 {[%clk 00:15:09]} {[%emt
00:00:02]} 2. c4 {[%clk 00:15:11]} {[%emt 00:00:02]} c6 {[%clk 00:15:12]}
{[%emt 00:00:01]} 3. cxd5 {[%clk 00:15:15]} {[%emt 00:00:02]} cxd5 {[%clk
00:15:16]} 4. Bf4 {[%clk 00:15:17]} {[%emt 00:00:04]} Nc6 {[%clk 00:15:18]}
{[%emt 00:00:02]} 5. e3 {[%clk 00:15:20]} {[%emt 00:00:02]} Nf6 {[%clk
00:15:13]} {[%emt 00:00:08]} 6. Bb5 {[%clk 00:15:22]} {[%emt 00:00:04]} Bd7
{[%clk 00:13:28]} {[%emt 00:01:50]} 7. Nc3 {[%clk 00:15:08]} {[%emt 00:00:19]}
e6 {[%clk 00:13:21]} {[%emt 00:00:12]} 8. Rc1 {[%clk 00:13:52]} {[%emt
00:01:22]} Be7 {[%clk 00:13:09]} {[%emt 00:00:16]} 9. h3 {[%clk 00:13:43]}
{[%emt 00:00:15]} O-O {[%clk 00:12:56]} {[%emt 00:00:17]} 10. Nf3 {[%clk
00:13:42]} {[%emt 00:00:07]} Ne4 {[%clk 00:12:38]} {[%emt 00:00:23]} 11. O-O
{[%clk 00:13:08]} {[%emt 00:00:39]} f5 {[%clk 00:12:35]} {[%emt 00:00:08]} 12.
Qe2 {[%clk 00:11:46]} {[%emt 00:01:28]} a6 {[%clk 00:11:37]} {[%emt 00:01:03]}
13. Ba4 {[%clk 00:10:40]} {[%emt 00:01:07]} b5 {[%clk 00:11:20]} {[%emt
00:00:25]} 14. Bd1 {[%clk 00:08:53]} {[%emt 00:01:53]} b4 {[%clk 00:09:30]}
{[%emt 00:01:55]} 15. Nxe4 {[%clk 00:07:56]} {[%emt 00:01:02]} fxe4 {[%clk
00:09:13]} {[%emt 00:00:21]} 16. Ne5 {[%clk 00:07:44]} {[%emt 00:00:17]} Nxd4
{[%clk 00:09:04]} {[%emt 00:00:15]} 17. exd4 {[%clk 00:04:57]} {[%emt
00:02:53]} Rxf4 {[%clk 00:09:05]} {[%emt 00:00:02]} 18. Nc6 {[%clk 00:04:44]}
{[%emt 00:00:19]} Qe8 {[%clk 00:08:37]} {[%emt 00:00:32]} 19. Nxe7+ {[%clk
00:03:37]} {[%emt 00:01:13]} Qxe7 {[%clk 00:08:40]} {[%emt 00:00:01]} 20. Qe3
{[%clk 00:02:52]} {[%emt 00:00:51]} Raf8 {[%clk 00:08:37]} {[%emt 00:00:07]} 21.
Be2 {[%clk 00:02:56]} {[%emt 00:00:02]} Qd6 {[%clk 00:07:28]} {[%emt 00:01:13]}
22. Rc5 {[%clk 00:02:30]} {[%emt 00:00:32]} e5 {[%clk 00:06:57]} {[%emt
00:00:35]} 23. b3 {[%clk 00:01:35]} {[%emt 00:01:01]} Kh8 {[%clk 00:04:42]}
{[%emt 00:02:18]} 24. Ra5 {[%clk 00:01:03]} {[%emt 00:00:39]} Bc8 {[%clk
00:04:45]} {[%emt 00:00:02]} 25. Qd2 {[%clk 00:00:42]} {[%emt 00:00:26]} Bb7
{[%clk 00:04:21]} {[%emt 00:00:28]} 26. dxe5 {[%clk 00:00:36]} {[%emt
00:00:12]} Qb6 {[%clk 00:04:01]} {[%emt 00:00:25]} 27. Ra4 {[%clk 00:00:19]}
{[%emt 00:00:22]} Rxf2 {[%clk 00:03:33]} {[%emt 00:00:33]} 28. Rxf2 {[%clk
00:00:21]} {[%emt 00:00:03]} Qxf2+ {[%clk 00:03:31]} {[%emt 00:00:07]} 29. Kh2
{[%clk 00:00:17]} {[%emt 00:00:09]} a5 {[%clk 00:03:02]} {[%emt 00:00:34]} 30.
Rxa5 {[%clk 00:00:19]} {[%emt 00:00:03]} d4 {[%clk 00:03:06]} 31. Qxb4 {[%clk
00:00:10]} {[%emt 00:00:14]} Ba8 {[%clk 00:02:39]} {[%emt 00:00:32]} 32. e6
{[%clk 00:00:07]} {[%emt 00:00:08]} e3 {[%clk 00:02:25]} {[%emt 00:00:18]} 33.
Bf3 {[%clk 00:00:10]} {[%emt 00:00:02]} Rg8 {[%clk 00:01:50]} {[%emt 00:00:41]}
34. Rxa8 {[%clk 00:00:08]} {[%emt 00:00:07]} Rxa8 {[%clk 00:00:26]} {[%emt
00:01:29]} 35. Bxa8 {[%clk 00:00:12]} Qf4+ {[%clk 00:00:13]} {[%emt 00:00:18]}
36. g3 {[%clk 00:00:15]} {[%emt 00:00:03]} Qf2+ {[%clk 00:00:14]} {[%emt
00:00:03]} 37. Bg2 {[%clk 00:00:18]} {[%emt 00:00:02]} h6 {[%clk 00:00:14]}
{[%emt 00:00:06]} 38. e7 {[%clk 00:00:15]} {[%emt 00:00:08]} e2 {[%emt
00:00:14]} 1-0

[Event "Elite Hotels Open 2024"]
[Site "Elite Stadshotellet, Kungsgatan 6, Vaxjo, Sweden"]
[Date "2024.02.09"]
[Round "4.5"]
[White "Johansson, Linus"]
[Black "Rydstrom, Tom"]
[Result "1/2-1/2"]
[TimeControl "15 minutes + 5 seconds per move from move one (Round 1 - 4) / 90 minutes + 30 seconds per move from move one (Round 5 - 8)"]
[WhiteTitle "IM"]
[BlackTitle "FM"]
[WhiteFideId "1711113"]
[BlackFideId "1714830"]
[WhiteElo "2434"]
[BlackElo "2254"]

1. d4 {[%clk 00:15:08]} {[%emt 00:00:01]} Nf6 {[%clk 00:15:09]} {[%emt
00:00:02]} 2. c4 {[%clk 00:15:11]} c6 {[%clk 00:15:03]} {[%emt 00:00:12]} 3.
Nc3 {[%clk 00:15:06]} {[%emt 00:00:10]} d5 {[%clk 00:15:06]} {[%emt 00:00:02]}
4. Nf3 {[%clk 00:15:09]} {[%emt 00:00:02]} e6 {[%clk 00:15:09]} {[%emt
00:00:01]} 5. e3 {[%clk 00:15:11]} {[%emt 00:00:02]} Nbd7 {[%clk 00:15:14]}
{[%emt 00:00:02]} 6. Bd3 {[%clk 00:15:12]} {[%emt 00:00:04]} Be7 {[%clk
00:15:00]} {[%emt 00:00:18]} 7. e4 {[%clk 00:14:58]} {[%emt 00:00:19]} dxe4
{[%clk 00:15:03]} {[%emt 00:00:02]} 8. Nxe4 {[%clk 00:15:01]} {[%emt 00:00:02]}
Nxe4 {[%clk 00:14:59]} {[%emt 00:00:09]} 9. Bxe4 {[%clk 00:15:04]} {[%emt
00:00:01]} Nf6 {[%clk 00:14:23]} {[%emt 00:00:41]} 10. Bd3 {[%clk 00:15:06]}
{[%emt 00:00:03]} c5 {[%clk 00:14:10]} {[%emt 00:00:18]} 11. dxc5 {[%clk
00:15:05]} {[%emt 00:00:06]} Bxc5 {[%clk 00:14:09]} {[%emt 00:00:06]} 12. O-O
{[%clk 00:15:06]} {[%emt 00:00:03]} O-O {[%clk 00:13:44]} {[%emt 00:00:31]} 13.
Qe2 {[%clk 00:15:09]} {[%emt 00:00:03]} b6 {[%clk 00:12:52]} {[%emt 00:00:58]}
14. Rd1 {[%clk 00:14:19]} {[%emt 00:00:55]} Qe7 {[%clk 00:12:49]} {[%emt
00:00:08]} 15. Bd2 {[%clk 00:11:44]} {[%emt 00:02:39]} Bb7 {[%clk 00:12:40]}
{[%emt 00:00:14]} 16. Be1 {[%clk 00:10:31]} {[%emt 00:01:18]} Rfd8 {[%clk
00:12:17]} {[%emt 00:00:29]} 17. Bc2 {[%clk 00:10:33]} {[%emt 00:00:03]} a5
{[%clk 00:10:26]} {[%emt 00:01:56]} 18. a3 {[%clk 00:10:22]} {[%emt 00:00:15]}
Rxd1 {[%clk 00:07:12]} {[%emt 00:03:19]} 19. Rxd1 {[%clk 00:10:25]} {[%emt
00:00:03]} Rd8 {[%clk 00:06:59]} {[%emt 00:00:18]} 20. Rxd8+ {[%clk 00:10:02]}
{[%emt 00:00:28]} Qxd8 {[%clk 00:07:02]} {[%emt 00:00:01]} 21. b4 {[%clk
00:10:04]} {[%emt 00:00:03]} axb4 {[%clk 00:07:07]} {[%emt 00:00:01]} 22. axb4
{[%clk 00:10:08]} Be7 {[%clk 00:06:48]} {[%emt 00:00:24]} 23. h3 {[%clk
00:09:50]} {[%emt 00:00:22]} Qa8 {[%clk 00:06:38]} {[%emt 00:00:15]} 24. Qe3
{[%clk 00:08:22]} {[%emt 00:01:33]} Qa1 {[%clk 00:03:23]} {[%emt 00:03:21]} 25.
Qc3 {[%clk 00:08:19]} {[%emt 00:00:08]} Qxc3 {[%clk 00:03:27]} {[%emt
00:00:01]} 26. Bxc3 {[%clk 00:08:23]} {[%emt 00:00:01]} Kf8 {[%clk 00:03:10]}
{[%emt 00:00:22]} 27. Ne5 {[%clk 00:08:01]} {[%emt 00:00:28]} Bd6 {[%clk
00:02:40]} {[%emt 00:00:35]} 28. f3 {[%clk 00:07:35]} {[%emt 00:00:30]} Ke7
{[%clk 00:02:42]} {[%emt 00:00:03]} 29. Ba4 {[%clk 00:07:07]} {[%emt 00:00:32]}
g6 {[%clk 00:01:00]} {[%emt 00:01:48]} 30. Nc6+ {[%clk 00:06:57]} {[%emt
00:00:15]} Bxc6 {[%clk 00:01:04]} {[%emt 00:00:01]} 31. Bxc6 {[%clk 00:07:01]}
{[%emt 00:00:01]} Nd7 {[%clk 00:01:09]} 32. Bb5 {[%clk 00:06:41]} {[%emt
00:00:25]} Ne5 {[%clk 00:01:10]} {[%emt 00:00:04]} 33. f4 {[%clk 00:05:15]}
{[%emt 00:01:31]} Nd7 {[%clk 00:00:53]} {[%emt 00:00:22]} 34. g3 {[%clk
00:05:02]} {[%emt 00:00:17]} h5 {[%clk 00:00:50]} {[%emt 00:00:09]} 35. Bd2
{[%clk 00:04:46]} {[%emt 00:00:21]} e5 {[%clk 00:00:28]} {[%emt 00:00:27]} 36.
fxe5 Nxe5 {[%clk 00:00:32]} 37. Kg2 {[%clk 00:03:57]} Ke6 {[%clk 00:00:31]}
{[%emt 00:00:07]} 38. Bc3 {[%clk 00:03:03]} {[%emt 00:00:58]} Be7 {[%clk
00:00:34]} {[%emt 00:00:03]} 39. Ba6 {[%clk 00:01:47]} {[%emt 00:01:21]} Bf6
{[%clk 00:00:22]} {[%emt 00:00:16]} 40. Bc8+ {[%clk 00:01:34]} {[%emt
00:00:18]} Kd6 {[%clk 00:00:24]} {[%emt 00:00:03]} 41. Bd4 {[%clk 00:01:32]}
{[%emt 00:00:07]} Kc7 {[%clk 00:00:29]} {[%emt 00:00:01]} 42. Ba6 {[%clk
00:01:36]} Nd7 {[%clk 00:00:24]} {[%emt 00:00:09]} 43. Bxf6 {[%emt 00:00:16]}
Nxf6 44. Kf3 {[%clk 00:01:22]} {[%emt 00:00:08]} Kd6 {[%clk 00:00:33]} 45. Bb5
{[%clk 00:01:17]} {[%emt 00:00:10]} Ke5 {[%clk 00:00:17]} {[%emt 00:00:22]} 46.
Ke3 {[%clk 00:01:17]} {[%emt 00:00:04]} Ne4 {[%clk 00:00:19]} {[%emt 00:00:03]}
47. Be8 {[%clk 00:01:20]} {[%emt 00:00:02]} Nxg3 {[%clk 00:00:18]} {[%emt
00:00:06]} 48. Bxf7 {[%clk 00:01:23]} {[%emt 00:00:02]} g5 {[%clk 00:00:15]}
{[%emt 00:00:08]} 49. Kf3 {[%clk 00:01:19]} {[%emt 00:00:09]} h4 {[%clk
00:00:20]} 50. Kg4 {[%clk 00:01:16]} {[%emt 00:00:08]} Kf6 {[%clk 00:00:16]}
{[%emt 00:00:08]} 51. Bd5 {[%clk 00:01:20]} Nf5 {[%clk 00:00:19]} {[%emt
00:00:02]} 52. Kf3 {[%clk 00:01:14]} {[%emt 00:00:10]} Ke5 {[%clk 00:00:22]}
{[%emt 00:00:02]} 53. Bg8 {[%clk 00:01:10]} {[%emt 00:00:08]} Nh6 {[%clk
00:00:11]} {[%emt 00:00:16]} 54. Bd5 {[%clk 00:01:05]} {[%emt 00:00:10]} Nf5
{[%clk 00:00:15]} {[%emt 00:00:01]} 55. Ba8 {[%clk 00:00:53]} {[%emt 00:00:17]}
Nh6 {[%emt 00:00:12]} 56. c5 {[%clk 00:00:53]} {[%emt 00:00:04]} bxc5 57. bxc5
{[%clk 00:00:57]} Nf7 {[%clk 00:00:12]} {[%emt 00:00:07]} 58. Bb7 {[%clk
00:00:42]} {[%emt 00:00:20]} Nd8 {[%clk 00:00:13]} {[%emt 00:00:05]} 59. Be4
{[%clk 00:00:18]} {[%emt 00:00:29]} Ne6 {[%clk 00:00:15]} {[%emt 00:00:03]} 60.
c6 {[%clk 00:00:16]} {[%emt 00:00:07]} Nd4+ {[%clk 00:00:19]} 61. Kg4 {[%clk
00:00:16]} {[%emt 00:00:06]} Nxc6 {[%clk 00:00:20]} {[%emt 00:00:04]} 62. Bxc6
{[%emt 00:00:01]} Kf6 63. Be4 {[%clk 00:00:21]} {[%emt 00:00:02]} Kg7 {[%clk
00:00:29]} 64. Kxg5 {[%clk 00:00:24]} {[%emt 00:00:02]} Kh8 {[%clk 00:00:34]}
65. Kxh4 {[%clk 00:00:28]} {[%emt 00:00:02]} Kg7 {[%clk 00:00:39]} 66. Kg5
{[%clk 00:00:31]} {[%emt 00:00:01]} Kh8 {[%clk 00:00:43]} 67. Kh6 {[%emt
00:00:02]} Kg8 68. Bh7+ {[%emt 00:00:01]} Kh8 69. h4 {[%clk 00:00:42]} 1/2-1/2

[Event "Elite Hotels Open 2024"]
[Site "Elite Stadshotellet, Kungsgatan 6, Vaxjo, Sweden"]
[Date "2024.02.09"]
[Round "4.6"]
[White "Bjorkman, Filip"]
[Black "Sorensen, Hampus"]
[Result "0-1"]
[TimeControl "15 minutes + 5 seconds per move from move one (Round 1 - 4) / 90 minutes + 30 seconds per move from move one (Round 5 - 8)"]
[BlackTitle "IM"]
[WhiteFideId "1734970"]
[BlackFideId "8703884"]
[WhiteElo "2046"]
[BlackElo "2430"]

1. e4 {[%clk 00:15:07]} {[%emt 00:00:02]} c5 {[%clk 00:15:08]} {[%emt
00:00:03]} 2. Nf3 {[%clk 00:15:11]} {[%emt 00:00:01]} d6 {[%clk 00:15:12]}
{[%emt 00:00:02]} 3. d4 {[%clk 00:15:14]} cxd4 {[%clk 00:15:16]} {[%emt
00:00:01]} 4. Nxd4 {[%clk 00:15:18]} Nf6 {[%clk 00:15:20]} 5. Nc3 {[%clk
00:15:22]} {[%emt 00:00:01]} a6 {[%clk 00:15:24]} {[%emt 00:00:02]} 6. f3
{[%clk 00:15:26]} e5 {[%clk 00:15:27]} {[%emt 00:00:02]} 7. Nb3 {[%clk
00:15:30]} Be7 {[%clk 00:15:27]} {[%emt 00:00:04]} 8. Be3 {[%clk 00:15:33]}
{[%emt 00:00:01]} Be6 {[%clk 00:15:31]} {[%emt 00:00:02]} 9. Qd2 {[%clk
00:15:37]} {[%emt 00:00:01]} h5 {[%clk 00:15:34]} {[%emt 00:00:02]} 10. O-O-O
{[%clk 00:15:38]} {[%emt 00:00:04]} Nbd7 {[%clk 00:15:37]} {[%emt 00:00:03]} 11.
Kb1 {[%clk 00:14:14]} {[%emt 00:01:28]} Rc8 {[%clk 00:14:46]} {[%emt 00:00:56]}
12. Nd5 {[%clk 00:13:03]} {[%emt 00:01:16]} Nxd5 {[%clk 00:14:47]} {[%emt
00:00:04]} 13. exd5 {[%clk 00:13:06]} {[%emt 00:00:02]} Bf5 {[%clk 00:14:51]}
{[%emt 00:00:01]} 14. Bd3 {[%clk 00:13:07]} {[%emt 00:00:04]} Bxd3 {[%clk
00:14:45]} {[%emt 00:00:12]} 15. Qxd3 {[%clk 00:13:10]} {[%emt 00:00:02]} Bg5
{[%clk 00:13:22]} {[%emt 00:01:27]} 16. f4 {[%clk 00:12:51]} {[%emt 00:00:24]}
exf4 {[%clk 00:13:03]} {[%emt 00:00:25]} 17. Bd4 {[%clk 00:12:55]} O-O {[%clk
00:12:46]} {[%emt 00:00:22]} 18. h4 {[%clk 00:12:34]} {[%emt 00:00:26]} Bh6
{[%clk 00:12:00]} {[%emt 00:00:52]} 19. Nd2 {[%clk 00:11:35]} {[%emt 00:01:03]}
Re8 {[%clk 00:11:24]} {[%emt 00:00:42]} 20. Rde1 {[%clk 00:10:44]} {[%emt
00:00:55]} Rxe1+ {[%clk 00:10:47]} {[%emt 00:00:43]} 21. Rxe1 {[%clk 00:10:48]}
Qxh4 {[%clk 00:10:46]} {[%emt 00:00:06]} 22. Nf3 {[%clk 00:10:52]} Qg4 {[%clk
00:10:44]} {[%emt 00:00:08]} 23. a3 {[%clk 00:09:52]} {[%emt 00:01:06]} Nf8
{[%clk 00:09:55]} {[%emt 00:00:53]} 24. Re2 {[%clk 00:09:50]} {[%emt 00:00:07]}
Qd7 {[%clk 00:09:31]} {[%emt 00:00:29]} 25. Qb3 {[%clk 00:09:10]} {[%emt
00:00:46]} b5 {[%clk 00:09:26]} {[%emt 00:00:10]} 26. Qd3 {[%clk 00:08:49]}
{[%emt 00:00:25]} Ng6 {[%clk 00:08:22]} {[%emt 00:01:08]} 27. Bc3 {[%clk
00:08:36]} {[%emt 00:00:19]} Re8 {[%clk 00:08:08]} {[%emt 00:00:19]} 28. Rxe8+
{[%clk 00:07:55]} {[%emt 00:00:46]} Qxe8 {[%clk 00:08:12]} 29. Qf5 {[%clk
00:07:59]} Qe2 {[%clk 00:07:46]} {[%emt 00:00:31]} 30. Ng5 {[%clk 00:07:40]}
{[%emt 00:00:24]} Bxg5 {[%clk 00:07:35]} {[%emt 00:00:16]} 31. Qxg5 {[%clk
00:07:44]} Kh7 {[%clk 00:06:16]} {[%emt 00:01:25]} 32. Qxh5+ {[%emt 00:00:07]}
0-1